lending/lending_fUSD_20240705
["ID","MTS","AMOUNT","RATE_DAILY","PERIOD"]
[331287426,1720185027906,750.0,0.00011199,2]
[331287427,1720185029429,163.45998808,0.00032357,30]
[331287428,1720185030152,3111.08002322,0.00011199,2]
[331287429,1720185031471,177.98565708,0.00032357,30]
[331287430,1720185033875,375.3261192,0.00032357,30]
[331287434,1720185036059,175.78269355,0.00032357,30]
[331287436,1720185037001,295.30172268,0.00032357,30]
[331287437,1720185037016,-547.72,0.00011674,2]
[331287438,1720185037027,-158.8336035,0.00012273,2]
[331287439,1720185037038,-155.74166989,0.00012302,2]
[331287440,1720185037049,-208.59946816,0.00012314,2]
[331287442,1720185037059,-4063.4657,0.00012928,2]
[331287444,1720185037070,-300.0,0.00013127,2]
[331287446,1720185037083,-1253.30119177,0.00013128,2]
[331287447,1720185037093,-250.0,0.00013209,2]
[331287448,1720185037103,-169.01,0.00013271,2]
[331287449,1720185037114,-216.67569474,0.00013472,2]
[331287450,1720185037124,-202.25757491,0.00013516,2]
[331287451,1720185037135,-396.61927383,0.00013516,2]
[331287452,1720185037145,-150.0,0.00013573,2]
[331287453,1720185037156,-67856.27687089,0.00013574,2]
[331287454,1720185037167,-19812.12382631,0.00013574,2]
[331287455,1720185037178,-3394.25146719,0.00013736,2]
[331287456,1720185037191,-15427.22902033,0.00013736,2]
[331287457,1720185037213,-250.0,0.00013751,2]
[331287458,1720185037225,-622.83019269,0.00013799,2]
[331287459,1720185037236,-622.83019268,0.00013799,2]
[331287460,1720185037247,-328.75485163,0.00013799,2]
[331287461,1720185037259,-258.17061284,0.00013799,2]
[331287462,1720185037270,-260.16132395,0.00013802,2]
[331287463,1720185037282,-3026.88693848,0.00013849,2]
[331287464,1720185037293,-295581.82868208,0.00013899,2]
[331287465,1720185037302,-605.6,0.00013899,2]
[331287466,1720185037311,-499.99,0.00013899,2]
[331287467,1720185037322,-71055.4336,0.00013899,2]
[331287468,1720185037333,-1000.0,0.00013899,2]
[331287469,1720185037342,-685.06477435,0.00013899,2]
[331287470,1720185037352,-685.06477435,0.00013899,2]
[331287471,1720185037361,-500.0,0.000139,5]
[331287472,1720185037371,-547.72,0.00013938,2]
[331287473,1720185037380,-194.18126619,0.00013989,2]
[331287474,1720185037390,-260066.90358449,0.00013999,2]
[331287475,1720185037407,-3299.21382241,0.00013999,2]
[331287476,1720185037418,-107504.181862,0.00013999,2]
[331287477,1720185037428,-299.99,0.00013999,2]
[331287478,1720185037438,-2333.37501314,0.00013999,2]
[331287479,1720185037447,-2738.14487436,0.00013999,2]
[331287480,1720185037459,-2470.30408467,0.00013999,2]
[331287481,1720185037715,-6840.68,0.00014089,2]
[331287482,1720185037736,-800.0,0.00014206,2]
[331287483,1720185037746,-420.0,0.00014394,2]
[331287484,1720185037756,-160.13713916,0.000148,2]
[331287485,1720185037766,-939.65874,0.0001485,2]
[331287486,1720185037776,-171.03600203,0.00014866,2]
[331287487,1720185037785,-173.85745008,0.00014873,2]
[331287488,1720185037795,-679.8807,0.00014899,2]
[331287489,1720185037806,-166.53172871,0.00014899,2]
[331287490,1720185037817,-1816.88391842,0.00014899,2]
[331287491,1720185037830,-6950.4756,0.000149,2]
[331287492,1720185037840,-245000.0,0.000149,2]
[331287493,1720185037850,-1000.0,0.000149,5]
[331287494,1720185037860,-150.12108655,0.0001498,2]
[331287495,1720185037870,-368539.47087754,0.00015,2]
[331287496,1720185037879,-24653.95106231,0.00015,2]
[331287497,1720185037889,-169.85882371,0.00015,2]
[331287498,1720185037899,-151.0,0.00015,2]
[331287499,1720185037909,-151.0,0.00015,2]
[331287500,1720185037919,-413.20741,0.00015,2]
[331287501,1720185037929,-413.20741,0.00015,2]
[331287502,1720185037939,-151.0,0.00015,2]
[331287503,1720185037950,-151.0,0.00015,2]
[331287504,1720185037960,-151.0,0.00015,2]
[331287505,1720185037971,-151.0,0.00015,2]
[331287506,1720185037981,-151.0,0.00015,2]
[331287507,1720185037992,-151.0,0.00015,2]
[331287508,1720185038002,-151.0,0.00015,2]
[331287509,1720185038013,-151.0,0.00015,2]
[331287510,1720185038024,-299.541276,0.00015,2]
[331287511,1720185038034,-151.0,0.00015,2]
[331287512,1720185038044,-151.0,0.00015,2]
[331287513,1720185038054,-151.0,0.00015,2]
[331287514,1720185038064,-151.0,0.00015,2]
[331287515,1720185038075,-255.426662,0.00015,2]
[331287516,1720185038085,-255.426662,0.00015,2]
[331287517,1720185038095,-1364.063273,0.00015,2]
[331287518,1720185038105,-1364.063273,0.00015,2]
[331287519,1720185038115,-151.0,0.00015,2]
[331287520,1720185038126,-254.607532,0.00015,2]
[331287521,1720185038136,-224.37066,0.00015,2]
[331287522,1720185038146,-254.607532,0.00015,2]
[331287523,1720185038156,-224.37066,0.00015,2]
[331287524,1720185038167,-151.0,0.00015,2]
[331287525,1720185038178,-151.0,0.00015,2]
[331287526,1720185038189,-151.0,0.00015,2]
[331287527,1720185038199,-151.0,0.00015,2]
[331287528,1720185038210,-151.0,0.00015,2]
[331287529,1720185038220,-151.0,0.00015,2]
[331287530,1720185038230,-151.0,0.00015,2]
[331287531,1720185038240,-151.0,0.00015,2]
[331287532,1720185038249,-192.010867,0.00015,2]
[331287533,1720185038259,-151.0,0.00015,2]
[331287534,1720185038269,-151.0,0.00015,2]
[331287535,1720185038279,-163.170445,0.00015,2]
[331287536,1720185038288,-172.360116,0.00015,2]
[331287537,1720185038298,-283.492865,0.00015,2]
[331287538,1720185038308,-283.492865,0.00015,2]
[331287539,1720185038319,-1171.309617,0.00015,2]
[331287540,1720185038333,-1171.309617,0.00015,2]
[331287541,1720185038343,-151.0,0.00015,2]
[331287542,1720185038353,-206.506525,0.00015,2]
[331287543,1720185038363,-206.506525,0.00015,2]
[331287544,1720185038373,-151.0,0.00015,2]
[331287545,1720185038384,-151.0,0.00015,2]
[331287546,1720185038399,-341.0,0.00015014,2]
[331287547,1720185038408,-258.17061284,0.00015098,2]
[331287548,1720185038419,-1386.48863471,0.00015335,2]
[331287549,1720185038429,-150.0,0.00015364,2]
[331287550,1720185038440,-6957.49243875,0.00015399,2]
[331287551,1720185038450,-1055.35982882,0.00015399,2]
[331287552,1720185038460,-1135.49782486,0.00015535,2]
[331287553,1720185038470,-1287.48512797,0.00015535,2]
[331287554,1720185038483,-1135.49782486,0.00015535,2]
[331287555,1720185038493,-1342.0604415,0.00015579,2]
[331287556,1720185038504,-173.85745002,0.00015602,2]
[331287557,1720185038513,-587.0,0.00015783,2]
[331287558,1720185038523,-800.0,0.00015982,2]
[331287559,1720185038533,-155.71818757,0.00016172,2]
[331287560,1720185038545,-547.72,0.00016201,2]
[331287561,1720185038555,-1399.54620502,0.00016315,2]
[331287562,1720185038566,-1630.1845532,0.00016315,2]
[331287563,1720185038578,-173.85745002,0.00016331,2]
[331287564,1720185038589,-258.17061284,0.00016396,2]
[331287565,1720185038599,-270.73391,0.00016438,2]
[331287566,1720185038611,-270.73391,0.00016438,2]
[331287567,1720185038622,-1760.19550154,0.00016566,2]
[331287568,1720185038633,-1903.65279599,0.00016699,2]
[331287569,1720185038643,-721.44508691,0.00016699,2]
[331287570,1720185038653,-717.97789183,0.00016699,2]
[331287571,1720185038664,-853.0,0.000167,2]
[331287572,1720185038674,-184.2,0.00016712,2]
[331287573,1720185038685,-150.0,0.00016734,2]
[331287574,1720185038695,-1547.58956559,0.00016808,2]
[331287575,1720185038706,-200.0,0.00016882,2]
[331287576,1720185038716,-436.0449423,0.00017,2]
[331287577,1720185038730,-173.85745002,0.00017059,2]
[331287578,1720185038740,-647.79973678,0.00017159,2]
[331287579,1720185038751,-603.43249495,0.00017159,2]
[331287580,1720185038761,-660.70344244,0.00017199,2]
[331287581,1720185038772,-651.44479338,0.00017199,2]
[331287582,1720185038782,-884.20941361,0.00017253,2]
[331287583,1720185038794,-163.73601725,0.00017257,2]
[331287584,1720185038804,-156.31937905,0.00017257,2]
[331287585,1720185038815,-297.24474814,0.00017257,2]
[331287586,1720185038831,-623.48458061,0.00017259,2]
[331287587,1720185038842,-155.57780324,0.00017259,2]
[331287588,1720185038853,-823.0,0.00017307,2]
[331287589,1720185038864,-939.65874,0.0001735,2]
[331287590,1720185038874,-155.0,0.00017444,2]
[331287591,1720185038884,-290.97986156,0.00017533,2]
[331287592,1720185038895,-155.93987876,0.00017533,2]
[331287593,1720185038905,-366.11090361,0.00017566,2]
[331287594,1720185038915,-266.23744785,0.00017566,2]
[331287595,1720185038925,-155.0,0.00017599,2]
[331287596,1720185038935,-258.17061284,0.00017695,2]
[331287597,1720185038946,-800.0,0.00017757,2]
[331287598,1720185038956,-173.85745002,0.00017788,2]
[331287599,1720185038966,-788.84536282,0.00017807,2]
[331287600,1720185038976,-415.70505063,0.00018,2]
[331287601,1720185038986,-314.87509155,0.00018,2]
[331287602,1720185038996,-155.0,0.00018,2]
[331287603,1720185039006,-959.60022678,0.00018182,2]
[331287604,1720185039017,-547.72,0.00018465,2]
[331287605,1720185039028,-173.85745002,0.00018517,2]
[331287606,1720185039040,-1271.41583717,0.00018759,2]
[331287607,1720185039051,-164.81,0.00018849,30]
[331287608,1720185039061,-161.28077976,0.00018864,2]
[331287609,1720185039072,-450.95794745,0.00018899,2]
[331287610,1720185039084,-151.37,0.000189,2]
[331287611,1720185039094,-151.37,0.000189,2]
[331287612,1720185039105,-151.37,0.000189,2]
[331287613,1720185039116,-151.37,0.000189,2]
[331287614,1720185039126,-151.37,0.000189,2]
[331287615,1720185039137,-151.37,0.000189,2]
[331287616,1720185039147,-151.37,0.000189,2]
[331287617,1720185039157,-151.37,0.000189,2]
[331287618,1720185039168,-1152.0,0.00018978,2]
[331287619,1720185039178,-200.0,0.00018992,2]
[331287620,1720185039189,-258.17061284,0.00018994,2]
[331287621,1720185039200,-5000.0,0.00019,2]
[331287622,1720185039210,-155.34957523,0.00019,2]
[331287623,1720185039221,-222.35044918,0.00019,2]
[331287624,1720185039231,-227.17477303,0.00019177,2]
[331287625,1720185039242,-266.0735,0.00019178,2]
[331287626,1720185039252,-266.0735,0.00019178,2]
[331287627,1720185039262,-5408.78,0.00019178,2]
[331287628,1720185039273,-250.0,0.00019178,2]
[331287629,1720185039283,-155.0,0.00019229,2]
[331287630,1720185039293,-173.85745002,0.00019246,2]
[331287631,1720185039304,-524.1073643,0.00019299,2]
[331287632,1720185039315,-368.22479486,0.00019299,2]
[331287633,1720185039326,-296.98016859,0.00019352,2]
[331287634,1720185039336,-369.04652903,0.00019354,2]
[331287635,1720185039347,-2500.0,0.000195,2]
[331287636,1720185039357,-882.53468228,0.000195,2]
[331287637,1720185039367,-2775.68967099,0.00019503,2]
[331287638,1720185039377,-800.0,0.00019533,2]
[331287639,1720185039388,-526.09991014,0.00019725,2]
[331287640,1720185039405,-151.37,0.0001979,2]
[331287641,1720185039415,-151.37,0.0001979,2]
[331287642,1720185039425,-151.37,0.0001979,2]
[331287643,1720185039435,-151.0,0.000198,2]
[331287644,1720185039447,-266.0735,0.000198,2]
[331287645,1720185039457,-151.0,0.000198,2]
[331287646,1720185039467,-266.0735,0.000198,2]
[331287647,1720185039478,-413.20741,0.000198,2]
[331287648,1720185039488,-413.20741,0.000198,2]
[331287649,1720185039498,-151.0,0.000198,2]
[331287650,1720185039508,-151.0,0.000198,2]
[331287651,1720185039517,-151.0,0.000198,2]
[331287654,1720185039528,-151.0,0.000198,2]
[331287657,1720185039538,-151.0,0.000198,2]
[331287659,1720185039547,-151.0,0.000198,2]
[331287661,1720185039557,-151.0,0.000198,2]
[331287663,1720185039568,-270.73391,0.000198,2]
[331287665,1720185039580,-270.73391,0.000198,2]
[331287666,1720185039590,-151.0,0.000198,2]
[331287668,1720185039600,-151.0,0.000198,2]
[331287670,1720185039611,-151.0,0.000198,2]
[331287673,1720185039621,-151.0,0.000198,2]
[331287675,1720185039632,-255.426662,0.000198,2]
[331287676,1720185039642,-255.426662,0.000198,2]
[331287679,1720185039652,-1364.063273,0.000198,2]
[331287680,1720185039663,-1364.063273,0.000198,2]
[331287682,1720185039673,-151.0,0.000198,2]
[331287683,1720185039684,-254.607532,0.000198,2]
[331287684,1720185039694,-224.37066,0.000198,2]
[331287685,1720185039704,-254.607532,0.000198,2]
[331287686,1720185039715,-224.37066,0.000198,2]
[331287687,1720185039725,-151.0,0.000198,2]
[331287688,1720185039736,-151.0,0.000198,2]
[331287689,1720185039747,-151.0,0.000198,2]
[331287690,1720185039757,-151.0,0.000198,2]
[331287691,1720185039767,-151.0,0.000198,2]
[331287692,1720185039777,-151.0,0.000198,2]
[331287693,1720185039788,-153.246447,0.000198,2]
[331287694,1720185039798,-151.0,0.000198,2]
[331287695,1720185039809,-151.0,0.000198,2]
[331287696,1720185039819,-151.0,0.000198,2]
[331287697,1720185039832,-172.360116,0.000198,2]
[331287698,1720185039843,-283.492865,0.000198,2]
[331287699,1720185039853,-283.492865,0.000198,2]
[331287700,1720185039864,-151.0,0.000198,2]
[331287701,1720185039875,-215.364587,0.000198,2]
[331287702,1720185039885,-151.0,0.000198,2]
[331287703,1720185039897,-215.364587,0.000198,2]
[331287704,1720185039907,-151.0,0.000198,2]
[331287705,1720185039922,-164.92683,0.000198,2]
[331287706,1720185039933,-164.92683,0.000198,2]
[331287707,1720185039943,-262.678263,0.000198,2]
[331287708,1720185039954,-262.678263,0.000198,2]
[331287709,1720185039965,-3719.328104,0.000198,2]
[331287710,1720185039975,-3719.328104,0.000198,2]
[331287711,1720185039985,-151.0,0.000198,2]
[331287712,1720185039996,-151.0,0.000198,2]
[331287713,1720185040006,-1877.384401,0.000198,2]
[331287714,1720185040016,-167.80656,0.000198,2]
[331287715,1720185040025,-1877.384401,0.000198,2]
[331287716,1720185040035,-151.0,0.000198,2]
[331287717,1720185040045,-167.80656,0.000198,2]
[331287718,1720185040054,-188.715358,0.000198,2]
[331287719,1720185040065,-299.023344,0.000198,2]
[331287720,1720185040077,-188.715358,0.000198,2]
[331287721,1720185040087,-299.023344,0.000198,2]
[331287722,1720185040097,-151.0,0.000198,2]
[331287723,1720185040108,-136073.57056784,0.000198,3]
[331287724,1720185040123,-1500.0,0.000198,3]
[331287725,1720185040136,-581.06799919,0.000198,3]
[331287726,1720185040154,-36737.70285173,0.000198,3]
[331287727,1720185040168,-15011.14076,0.000198,3]
[331287730,1720185040188,-254.25713924,0.00017444,2]
[331287732,1720185040199,-23029.92159607,0.000198,3]
[331287815,1720185041183,270.32817201,0.00032357,30]
[331287880,1720185041822,203.18,0.00032357,30]
[331287885,1720185041873,-544.27403271,0.00017253,2]
[331287887,1720185041883,-880.87831059,0.000198,3]
[331287897,1720185041966,-712.3,0.000198,3]
[331287899,1720185041977,-2348.40046312,0.000198,3]
[331287902,1720185041989,-8624.9991589,0.000198,3]
[331287904,1720185042000,-109808.83998156,0.000198,3]
[331287906,1720185042009,-758.873816,0.000198,2]
[331287908,1720185042018,-758.873816,0.000198,2]
[331287910,1720185042028,-151.0,0.000198,2]
[331287912,1720185042037,-151.0,0.000198,2]
[331287914,1720185042046,-151.0,0.000198,2]
[331287916,1720185042060,-415.517696,0.000198,2]
[331287918,1720185042070,-1171.309617,0.000198,2]
[331287920,1720185042083,-393.755407,0.000198,2]
[331287922,1720185042092,-151.0,0.000198,2]
[331287923,1720185042102,-1171.309617,0.000198,2]
[331287925,1720185042111,-415.517696,0.000198,2]
[331287927,1720185042121,-393.755407,0.000198,2]
[331287929,1720185042130,-2436.684064,0.000198,2]
[331287931,1720185042139,-2436.684064,0.000198,2]
[331287933,1720185042148,-151.0,0.000198,2]
[331287935,1720185042158,-206.506525,0.000198,2]
[331287937,1720185042167,-206.506525,0.000198,2]
[331287939,1720185042176,-151.0,0.000198,2]
[331287941,1720185042186,-151.0,0.000198,2]
[331287943,1720185042195,-158.812481,0.000198,2]
[331287945,1720185042204,-939.65874,0.0001985,2]
[331287947,1720185042213,-151.0,0.000199,2]
[331287949,1720185042223,-151.0,0.000199,2]
[331287951,1720185042233,-151.0,0.000199,2]
[331287953,1720185042242,-151.0,0.000199,2]
[331287955,1720185042251,-266.0735,0.000199,2]
[331287957,1720185042260,-151.0,0.000199,2]
[331287959,1720185042269,-266.0735,0.000199,2]
[331287961,1720185042278,-413.20741,0.000199,2]
[331287963,1720185042288,-413.20741,0.000199,2]
[331287965,1720185042298,-151.0,0.000199,2]
[331287968,1720185042307,-151.0,0.000199,2]
[331287970,1720185042316,-277.292862,0.000199,2]
[331287972,1720185042325,-151.0,0.000199,2]
[331287974,1720185042337,-151.0,0.000199,2]
[331287976,1720185042346,-179.206479,0.000199,2]
[331287978,1720185042355,-151.0,0.000199,2]
[331287980,1720185042364,-270.73391,0.000199,2]
[331287982,1720185042373,-270.73391,0.000199,2]
[331287984,1720185042384,-151.0,0.000199,2]
[331287986,1720185042395,-151.0,0.000199,2]
[331287987,1720185042408,-151.0,0.000199,2]
[331287989,1720185042418,-235.725852,0.000199,2]
[331287992,1720185042428,-255.426662,0.000199,2]
[331287993,1720185042437,-255.426662,0.000199,2]
[331287995,1720185042450,-1364.063273,0.000199,2]
[331287998,1720185042460,-1364.063273,0.000199,2]
[331288000,1720185042471,-151.0,0.000199,2]
[331288002,1720185042484,-254.607532,0.000199,2]
[331288004,1720185042494,-224.37066,0.000199,2]
[331288005,1720185042503,-254.607532,0.000199,2]
[331288008,1720185042513,-224.37066,0.000199,2]
[331288010,1720185042523,-151.0,0.000199,2]
[331288012,1720185042534,-151.0,0.000199,2]
[331288014,1720185042544,-151.0,0.000199,2]
[331288015,1720185042553,-151.0,0.000199,2]
[331288017,1720185042563,-151.0,0.000199,2]
[331288020,1720185042573,-151.0,0.000199,2]
[331288022,1720185042584,-151.0,0.000199,2]
[331288023,1720185042595,-283.492865,0.000199,2]
[331288025,1720185042604,-283.492865,0.000199,2]
[331288027,1720185042614,-151.00000097,0.000199,2]
[331288029,1720185042623,-215.364587,0.000199,2]
[331288032,1720185042651,-151.0,0.000199,2]
[331288033,1720185042661,-215.364587,0.000199,2]
[331288036,1720185042671,-151.0,0.000199,2]
[331288038,1720185042683,-164.92683,0.000199,2]
[331288040,1720185042693,-164.92683,0.000199,2]
[331288042,1720185042703,-262.678263,0.000199,2]
[331288043,1720185042713,-262.678263,0.000199,2]
[331288046,1720185042723,-3719.328104,0.000199,2]
[331288048,1720185042733,-3719.328104,0.000199,2]
[331288049,1720185042743,-151.0,0.000199,2]
[331288052,1720185042752,-151.0,0.000199,2]
[331288054,1720185042762,-450.97539563,0.000199,2]
[331288056,1720185042775,-1426.40900537,0.000199,2]
[331288058,1720185042785,-167.80656,0.000199,2]
[331288060,1720185042794,-28.77443463,0.000199,2]
[331288167,1720185043886,-1253.30119177,0.00013128,2]
[331288169,1720185043901,-128.33929057,0.00017703,2]
[331288171,1720185043913,-660.50607225,0.00017703,2]
[331288173,1720185043923,-296.98016859,0.00019352,2]
[331288174,1720185043933,-151.0,0.000198,2]
[331288175,1720185043942,-533.44503156,0.000199,2]
[331288176,1720185044443,-1315.16493481,0.000199,2]
[331288178,1720185044453,-151.0,0.000199,2]
[331288179,1720185044462,-167.80656,0.000199,2]
[331288180,1720185044472,-1500.0,0.000199,7]
[331288181,1720185044485,-188.715358,0.000199,2]
[331288182,1720185044495,-299.023344,0.000199,2]
[331288183,1720185044505,-188.715358,0.000199,2]
[331288184,1720185044514,-299.023344,0.000199,2]
[331288185,1720185044523,-151.94233,0.000199,2]
[331288186,1720185044532,-758.873816,0.000199,2]
[331288187,1720185044542,-58055.5352022,0.000199,3]
[331288188,1720185044551,-758.873816,0.000199,2]
[331288189,1720185044560,-151.0,0.000199,2]
[331288190,1720185044569,-151.0,0.000199,2]
[331288191,1720185044579,-151.0,0.000199,2]
[331288192,1720185044592,-1171.309617,0.000199,2]
[331288193,1720185044601,-415.517696,0.000199,2]
[331288194,1720185044613,-393.755407,0.000199,2]
[331288195,1720185044623,-151.0,0.000199,2]
[331288196,1720185044632,-1171.309617,0.000199,2]
[331288197,1720185044642,-415.517696,0.000199,2]
[331288198,1720185044651,-393.755407,0.000199,2]
[331288199,1720185044660,-2436.684064,0.000199,2]
[331288200,1720185044670,-2436.684064,0.000199,2]
[331288201,1720185044680,-14426.15885626,0.00019964,2]
[331288202,1720185044696,-274.72394149,0.00019964,2]
[331288203,1720185044713,-5103.80426414,0.00019964,2]
[331288204,1720185044725,-173.8234745,0.00019964,2]
[331288205,1720185044737,-173.85745002,0.00019975,2]
[331288206,1720185044748,-1250.0,0.0002,2]
[331288207,1720185044759,-865.32324995,0.0002,2]
[331288208,1720185044769,-151.37,0.00020121,2]
[331288209,1720185044779,-2228.861,0.00020131,2]
[331288210,1720185044790,-4172.754,0.00020131,2]
[331288211,1720185044799,-562.745,0.00020131,2]
[331288212,1720185044808,-1070.0,0.00020131,2]
[331288213,1720185044818,-1535.0,0.0002019,2]
[331288214,1720185044827,-258.17061284,0.00020293,2]
[331288215,1720185044839,-1092.11563853,0.000205,2]
[331288216,1720185044848,-1830.0,0.00020511,2]
[331288217,1720185044857,-1658.0,0.00020511,2]
[331288218,1720185044867,-350.917,0.00020511,2]
[331288219,1720185044877,-809.0,0.00020511,2]
[331288220,1720185044886,-622.653,0.00020511,2]
[331288221,1720185044895,-451.146,0.00020511,2]
[331288222,1720185044904,-444.0,0.00020511,2]
[331288223,1720185044913,-2375.0,0.00020511,2]
[331288224,1720185044922,-1304.0,0.00020511,2]
[331288225,1720185044933,-1988.0,0.00020511,2]
[331288226,1720185044942,-3249.0,0.00020511,2]
[331288227,1720185044954,-548.0,0.00020511,2]
[331288228,1720185044962,-283.0,0.00020511,2]
[331288229,1720185044971,-173.85745002,0.00020704,2]
[331288230,1720185044988,-547.72,0.00020729,2]
[331288231,1720185045023,-2000.0,0.000208,7]
[331288232,1720185045062,-403.0,0.00020809,2]
[331288233,1720185045091,-447.1143,0.0002089,2]
[331288234,1720185045105,-2500.0,0.000209,7]
[331288235,1720185045114,-150.50133856,0.000209,2]
[331288236,1720185045123,-201.70451698,0.0002099,7]
[331288237,1720185045132,-151.37,0.0002099,2]
[331288238,1720185045142,-151.37,0.0002099,2]
[331288239,1720185045151,-151.37,0.0002099,2]
[331288240,1720185045160,-151.37,0.0002099,2]
[331288241,1720185045170,-151.37,0.0002099,2]
[331288242,1720185045179,-151.37,0.0002099,2]
[331288243,1720185045188,-151.37,0.0002099,2]
[331288244,1720185045197,-151.37,0.0002099,2]
[331288245,1720185045207,-151.37,0.0002099,2]
[331288246,1720185045217,-151.37,0.0002099,2]
[331288247,1720185045226,-151.37,0.0002099,2]
[331288248,1720185045235,-151.37,0.0002099,2]
[331288249,1720185045245,-151.37,0.0002099,2]
[331288250,1720185045255,-737.98964315,0.00020999,5]
[331288251,1720185045264,-225.33520988,0.00021,2]
[331288252,1720185045274,-78158.46752473,0.00021,3]
[331288253,1720185045286,-423251.92954856,0.00021,3]
[331288254,1720185045691,217.36045506,0.00032357,30]
[331288255,1720185046024,269.77678819,0.00032357,30]
[331288256,1720185046041,-151.0,0.000198,2]
[331288257,1720185046051,-231.13094349,0.00021,3]
[331288258,1720185046061,-5852.40232488,0.00021,3]
[331288259,1720185046073,-64452.90213963,0.00021,3]
[331288262,1720185047209,-3199.6238,0.00021,3]
[331288264,1720185047220,-787.0295784,0.00021,3]
[331288266,1720185047232,-610.0,0.00021,3]
[331288268,1720185047244,-445059.24022384,0.00021,3]
[331288270,1720185047254,-501.5138301,0.00021,3]
[331288273,1720185047265,-561.64706905,0.00021,3]
[331288305,1720185047594,-151.0,0.000198,2]
[331288307,1720185047604,-5340.67848557,0.00021,3]
[331288309,1720185047618,-1068.33122055,0.00021,3]
[331288311,1720185047630,-422.24066894,0.00021,3]
[331288358,1720185048111,-2762.05,0.00021,3]
[331288361,1720185048124,-369.02971231,0.00021,3]
[331288363,1720185048136,-329151.45464233,0.00021,3]
[331288365,1720185049120,228.94728874,0.00032357,30]
[331288366,1720185050176,179.12371165,0.00032357,30]
[331288367,1720185051556,1670.83,0.00032357,30]
[331288368,1720185052042,1670.83,0.00032357,30]
[331288369,1720185052269,500.0,0.00032357,30]
[331288370,1720185052551,500.0,0.00032357,30]
[331288371,1720185052598,1670.83,0.00032357,30]
[331288372,1720185052829,500.0,0.00032357,30]
[331288373,1720185054000,500.0,0.00032357,30]
[331288374,1720185054434,217.79991502,0.00032357,30]
[331288375,1720185054686,284.547102,0.00032357,30]
[331288376,1720185054727,1670.83,0.00032357,30]
[331288377,1720185054768,182.13816769,0.00032357,30]
[331288378,1720185057513,1670.83,0.00032357,30]
[331288379,1720185059154,1670.83,0.00032357,30]
[331288380,1720185060056,1670.83,0.00032357,30]
[331288381,1720185061851,1670.83,0.00032357,30]
[331288382,1720185062656,1670.83,0.00032357,30]
[331288383,1720185063019,1670.83,0.00032357,30]
[331288384,1720185064253,271.6722346,0.00032357,30]
[331288385,1720185064299,1670.83,0.00032357,30]
[331288386,1720185064461,211.16063331,0.00032357,30]
[331288387,1720185064911,1670.83,0.00032357,30]
[331288388,1720185065481,1670.83,0.00032357,30]
[331288389,1720185066091,1670.83,0.00032357,30]
[331288390,1720185066658,1670.83,0.00032357,30]
[331288391,1720185067125,1670.83,0.00032357,30]
[331288392,1720185067169,203.19287911,0.00032357,30]
[331288393,1720185069370,1670.83,0.00032357,30]
[331288394,1720185070782,1670.83,0.00032357,30]
[331288395,1720185072145,1670.83,0.00032357,30]